fUST/lending_fUST_20240119
["ID","MTS","AMOUNT","RATE_DAILY","PERIOD"]
[312091228,1705609848500,-500.0,0.00042739,30]
[312091229,1705609848510,-500.0,0.00042739,30]
[312091230,1705609848519,-500.0,0.00042739,30]
[312091231,1705609848528,-795.24,0.00042739,30]
[312091232,1705609848537,-360.8142506,0.00042739,30]
[312091233,1705609848546,-500.0,0.00042739,30]
[312091234,1705609848556,-567.15,0.00042739,30]
[312091235,1705609848565,-500.0,0.00042739,30]
[312091236,1705609848574,-500.0,0.00042739,30]
[312091237,1705609848584,-500.0,0.00042739,30]
[312091238,1705609848593,-903.86,0.00042739,30]
[312091239,1705609848602,-500.0,0.00042739,30]
[312091240,1705609848612,-398.4018305,0.00042739,30]
[312091241,1705609848621,-586.68,0.00042739,14]
[312091242,1705609848630,-500.0,0.00042739,30]
[312091243,1705609848639,-527.16254967,0.00042739,30]
[312091244,1705609848648,-500.0,0.00042739,30]
[312091245,1705609848660,-500.0,0.00042739,30]
[312091246,1705609848669,-1437.2,0.00042739,30]
[312091247,1705609848678,-500.0,0.00042739,30]
[312091248,1705609848688,-500.0,0.00042739,30]
[312091249,1705609848697,-500.0,0.00042739,30]
[312091250,1705609848706,-500.0,0.00042739,30]
[312091251,1705609848715,-500.0,0.00042739,30]
[312091252,1705609848726,-500.0,0.00042739,30]
[312091253,1705609848735,-500.0,0.00042739,30]
[312091254,1705609848744,-522.07,0.00042739,30]
[312091255,1705609848753,-150.0,0.00042739,30]
[312091256,1705609848763,-500.0,0.00042739,30]
[312091257,1705609848775,-500.0,0.00042739,30]
[312091258,1705609848784,-504.17,0.00042739,30]
[312091259,1705609848793,-500.0,0.00042739,30]
[312091260,1705609848802,-500.0,0.00042739,30]
[312091261,1705609848810,-500.0,0.00042739,30]
[312091262,1705609848820,-529.01,0.00042739,30]
[312091263,1705609848829,-997.33,0.00042739,30]
[312091264,1705609848840,-500.0,0.00042739,30]
[312091265,1705609848849,-2380.61,0.00042739,30]
[312091266,1705609848858,-500.0,0.00042739,30]
[312091267,1705609848867,-2014.98,0.00042739,30]
[312091268,1705609848935,-500.0,0.00042739,30]
[312091269,1705609848945,-1153.77,0.00042739,30]
[312091270,1705609848954,-530.26,0.00042739,30]
[312091271,1705609848964,-941.51,0.00042739,30]
[312091272,1705609848973,-500.0,0.00042739,30]
[312091273,1705609848982,-2738.75,0.00042739,30]
[312091274,1705609848991,-4696.68,0.00042739,30]
[312091275,1705609849000,-2454.9,0.00042739,30]
[312091276,1705609849010,-500.0,0.00042739,30]
[312091277,1705609849018,-694.75,0.00042739,30]
[312091278,1705609849029,-4751.81,0.00042739,30]
[312091279,1705609849038,-20587.04,0.00042739,14]
[312091280,1705609849047,-907.43,0.00042739,30]
[312091281,1705609849056,-1314.82,0.00042739,30]
[312091282,1705609849065,-604.78,0.00042739,30]
[312091283,1705609849075,-5840.22,0.00042739,30]
[312091284,1705609849089,-12819.95,0.00042739,30]
[312091285,1705609849101,-5328.5,0.00042739,30]
[312091286,1705609849111,-885.11,0.00042739,30]
[312091287,1705609849120,-4165.65,0.00042739,30]
[312091288,1705609849129,-1719.38,0.00042739,30]
[312091289,1705609849139,-1286.62,0.00042739,30]
[312091290,1705609849148,-1016.47,0.00042739,30]
[312091291,1705609849158,-1030.76,0.00042739,30]
[312091292,1705609849167,-500.0,0.00042739,30]
[312091293,1705609849175,-500.0,0.00042739,30]
[312091294,1705609849185,-533.96789857,0.00042739,30]
[312091295,1705609849194,-736.15,0.00042739,30]
[312091296,1705609849204,-506.3,0.00042739,30]
[312091297,1705609849213,-500.0,0.00042739,30]
[312091298,1705609849224,-500.0,0.00042739,30]
[312091299,1705609849233,-500.0,0.00042739,30]
[312091300,1705609849244,-1777.03,0.00042739,30]
[312091301,1705609849253,-742.83,0.00042739,30]
[312091302,1705609849263,-294.36547453,0.00042739,30]
[312091303,1705609849272,-574.99,0.00042739,30]
[312091304,1705609849282,-1475.46,0.00042739,30]
[312091305,1705609849291,-2682.48,0.00042739,30]
[312091306,1705609849300,-500.0,0.00042739,2]
[312091307,1705609849309,-509.96,0.00042739,30]
[312091308,1705609849318,-500.0,0.00042739,2]
[312091309,1705609849328,-2183.98,0.00042739,30]
[312091310,1705609849336,-2785.85,0.00042739,30]
[312091311,1705609849345,-250.0,0.00042899,7]
[312091312,1705609849354,-250.0,0.00042899,14]
[312091313,1705609849363,-250.0,0.00042899,21]
[312091314,1705609849372,-1500.0,0.000429,3]
[312091315,1705609849381,-539.161709,0.000429,7]
[312091316,1705609849390,-245.009401,0.000429,18]
[312091317,1705609849399,-245.009401,0.000429,18]
[312091318,1705609849410,-155.88192505,0.00042963,4]
[312091319,1705609849419,-150.0,0.00042981,30]
[312091320,1705609849428,-154.98449845,0.00042998,4]
[312091321,1705609849438,-1000.0,0.00043,43]
[312091322,1705609849446,-1000.0,0.00043,30]
[312091323,1705609849455,-54770.0,0.00043,2]
[312091324,1705609849465,-539.86974756,0.00043,120]
[312091325,1705609849474,-331.0,0.00043,30]
[312091326,1705609849483,-331.0,0.0004301,30]
[312091327,1705609849492,-213.342054,0.00043013,7]
[312091328,1705609849501,-362.352601,0.00043013,7]
[312091329,1705609849510,-362.352601,0.00043013,7]
[312091330,1705609849519,-500.0,0.00043013,30]
[312091331,1705609849528,-500.0,0.00043013,30]
[312091332,1705609849537,-500.0,0.00043013,30]
[312091333,1705609849546,-795.24,0.00043013,30]
[312091334,1705609849555,-500.0,0.00043013,30]
[312091335,1705609849565,-567.15,0.00043013,30]
[312091336,1705609849580,-500.0,0.00043013,30]
[312091337,1705609849590,-500.0,0.00043013,30]
[312091338,1705609849600,-291.86744333,0.00043013,30]
[312091339,1705609849609,-903.86,0.00043013,30]
[312091340,1705609849619,-500.0,0.00043013,30]
[312091341,1705609849629,-586.68,0.00043013,14]
[312091342,1705609849638,-509.25678815,0.00043013,30]
[312091343,1705609849647,-500.0,0.00043013,30]
[312091344,1705609849659,-500.0,0.00043013,30]
[312091345,1705609849669,-1437.2,0.00043013,30]
[312091346,1705609849678,-500.0,0.00043013,30]
[312091347,1705609849688,-500.0,0.00043013,30]
[312091348,1705609849697,-500.0,0.00043013,30]
[312091349,1705609849712,-500.0,0.00043013,30]
[312091350,1705609849735,-500.0,0.00043013,30]
[312091351,1705609849757,-500.0,0.00043013,30]
[312091352,1705609849778,-500.0,0.00043013,30]
[312091353,1705609849800,-522.07,0.00043013,30]
[312091354,1705609849825,-150.0,0.00043013,30]
[312091355,1705609849850,-500.0,0.00043013,30]
[312091356,1705609849870,-500.0,0.00043013,30]
[312091357,1705609849896,-504.17,0.00043013,30]
[312091358,1705609849923,-500.0,0.00043013,30]
[312091359,1705609849932,-500.0,0.00043013,30]
[312091360,1705609849941,-500.0,0.00043013,30]
[312091361,1705609849950,-529.01,0.00043013,30]
[312091362,1705609849959,-997.33,0.00043013,30]
[312091363,1705609849968,-500.0,0.00043013,30]
[312091364,1705609849977,-2380.61,0.00043013,30]
[312091365,1705609849986,-500.0,0.00043013,30]
[312091366,1705609849995,-2014.98,0.00043013,30]
[312091367,1705609850004,-505.96933648,0.00043013,30]
[312091368,1705609850013,-1153.77,0.00043013,30]
[312091369,1705609850023,-530.26,0.00043013,30]
[312091370,1705609850032,-941.51,0.00043013,30]
[312091371,1705609850041,-500.0,0.00043013,30]
[312091372,1705609850050,-2738.75,0.00043013,30]
[312091373,1705609850059,-4696.68,0.00043013,30]
[312091374,1705609850068,-2454.9,0.00043013,30]
[312091375,1705609850077,-500.0,0.00043013,30]
[312091376,1705609850087,-694.75,0.00043013,30]
[312091377,1705609850098,-4751.81,0.00043013,30]
[312091378,1705609850109,-20587.04,0.00043013,14]
[312091379,1705609850118,-907.43,0.00043013,30]
[312091380,1705609850128,-1314.82,0.00043013,30]
[312091381,1705609850137,-604.78,0.00043013,30]
[312091382,1705609850146,-5840.22,0.00043013,30]
[312091383,1705609850158,-12819.95,0.00043013,30]
[312091384,1705609850168,-5328.5,0.00043013,30]
[312091385,1705609850177,-885.11,0.00043013,30]
[312091386,1705609850186,-4165.65,0.00043013,30]
[312091387,1705609850195,-1719.38,0.00043013,30]
[312091388,1705609850205,-1286.62,0.00043013,30]
[312091389,1705609850214,-1016.47,0.00043013,30]
[312091390,1705609850279,-1030.76,0.00043013,30]
[312091391,1705609850289,-500.0,0.00043013,30]
[312091392,1705609850298,-500.0,0.00043013,30]
[312091393,1705609850307,-736.15,0.00043013,30]
[312091394,1705609850315,-506.3,0.00043013,30]
[312091395,1705609850325,-500.0,0.00043013,30]
[312091396,1705609850334,-500.0,0.00043013,30]
[312091397,1705609850343,-500.0,0.00043013,30]
[312091398,1705609850352,-1777.03,0.00043013,30]
[312091399,1705609850361,-742.83,0.00043013,30]
[312091400,1705609850370,-574.99,0.00043013,30]
[312091401,1705609850379,-1475.46,0.00043013,30]
[312091402,1705609850388,-2682.48,0.00043013,30]
[312091403,1705609850397,-500.0,0.00043013,2]
[312091404,1705609850408,-509.96,0.00043013,30]
[312091406,1705609850417,-500.0,0.00043013,2]
[312091407,1705609850426,-2183.98,0.00043013,30]
[312091409,1705609850435,-2785.85,0.00043013,30]
[312091411,1705609850444,-160.0,0.00043016,3]
[312091413,1705609850453,-339.76,0.0004305,30]
[312091414,1705609850462,-331.0,0.0004306,30]
[312091415,1705609850471,-362.352601,0.00043096,7]
[312091416,1705609850480,-362.352601,0.00043096,7]
[312091417,1705609850489,-297220.65495658,0.00043097,30]
[312091580,1705611032245,-1601.89034871,0.00028382,2]
[312091582,1705611032254,-526.29712741,0.00028383,2]
[312091584,1705611032264,-178.61661634,0.00028383,2]
[312091586,1705611032273,-554.91533247,0.00028384,2]
[312091588,1705611032282,-154.9690062,0.00028385,4]
[312091590,1705611032291,-238.02437486,0.00028386,2]
[312091592,1705611032301,-2813.10332854,0.00028386,2]
[312091594,1705611032310,-606.99127798,0.00028387,2]
[312091596,1705611032319,-5.38429561,0.00028388,2]
[312091601,1705611032335,-1316.42081269,0.00028388,2]
[312091604,1705611032344,-166.666666,0.00029122,2]
[312091606,1705611032353,-556.06252131,0.000295,30]
[312091679,1705611038263,-2443.93747869,0.000295,30]
[312091681,1705611038272,-2303.7173266,0.000295,2]
[312091683,1705611038281,-247.3304248,0.00029629,2]
[312091695,1705611038379,-24652.6695752,0.00029629,2]
[312091697,1705611038388,-200.970093,0.00029831,2]
[312091699,1705611038397,-166.666666,0.00029916,2]
[312091701,1705611038406,-3214.7973618,0.00030001,4]
[312091703,1705611038417,-166.387399,0.0003002,2]
[312091705,1705611038426,-2268.46994375,0.00030077,3]
[312091707,1705611038435,-162.563631,0.00030137,2]
[312091709,1705611038444,-162.763524,0.00030137,2]
[312091711,1705611038453,-193.0,0.00030374,2]
[312091713,1705611038462,-166.666666,0.0003071,2]
[312091715,1705611038472,-200.0,0.00031226,15]
[312091717,1705611038482,-152.87756486,0.00031269,7]
[312091720,1705611038503,-166.666666,0.00031504,2]
[312091722,1705611038513,-154.24828181,0.00031571,7]
[312091724,1705611038522,-162.563631,0.00031781,2]
[312091726,1705611038531,-155.0,0.00031803,2]
[312091728,1705611038541,-700.0,0.00031912,2]
[312091730,1705611038550,-880.60388124,0.00031912,2]
[312091732,1705611038559,-198.09805644,0.00031912,2]
[312091734,1705611038569,-227.07552432,0.00031938,2]
[312091736,1705611038579,-166.666666,0.00032298,2]
[312091738,1705611038588,-152.87756486,0.00032404,7]
[312091740,1705611038598,-5468.88,0.0003249,3]
[312091742,1705611038607,-10428.79,0.0003249,3]
[312091744,1705611038617,-2823.75361597,0.00032498,4]
[312091746,1705611038627,-500.0,0.00032499,2]
[312091748,1705611038637,-500.0,0.00032499,2]
[312091750,1705611038646,-445.30630083,0.00032499,2]
[312091752,1705611038656,-185.7415763,0.00032499,2]
[312091755,1705611038667,-235.48716285,0.00032499,2]
[312091757,1705611038677,-500.0,0.00032499,2]
[312091759,1705611038687,-500.0,0.00032499,2]
[312091761,1705611038697,-500.0,0.00032499,2]
[312091763,1705611038706,-500.0,0.00032499,2]
[312091765,1705611038715,-500.0,0.00032499,2]
[312091767,1705611038725,-178.12252032,0.00032499,2]
[312091769,1705611038734,-459.22969733,0.00032499,2]
[312091771,1705611038744,-100344.22175788,0.000325,20]
[312091773,1705611038752,-276.09635482,0.00032762,2]
[312091775,1705611038762,-715.36349633,0.00032784,3]
[312091777,1705611038771,-20785.78248263,0.00032784,6]
[312091779,1705611038780,-12901.87511092,0.00032803,6]
[312091781,1705611038790,-75812.01826243,0.00032803,6]
[312091783,1705611038799,-16400.05811751,0.00032803,5]
[312091785,1705611038808,-154.24828181,0.00032862,7]
[312091787,1705611038817,-1171.0,0.0003287,30]
[312091789,1705611038827,-1171.0,0.0003288,30]
[312091791,1705611038836,-235.56,0.0003289,30]
[312091793,1705611038845,-1171.0,0.0003289,30]
[312091795,1705611038854,-386.32476631,0.00033,2]
[312091797,1705611038864,-166.666666,0.00033092,2]
[312091799,1705611038874,-154.24828181,0.00033142,7]
[312091801,1705611038883,-155.0,0.00033173,2]
[312091803,1705611038892,-162.563631,0.00033425,2]
[312091805,1705611038901,-500.0,0.00033747,2]
[312091807,1705611038910,-157.542544,0.0003377,7]
[312091809,1705611038919,-526.02830813,0.00034196,30]
[312091811,1705611038928,-154.95351395,0.00034196,4]
[312091813,1705611038939,-280.0,0.00034349,15]
[312091815,1705611038949,-155.0,0.00034543,2]
[312091817,1705611038958,-154.24828181,0.00034729,7]
[312091819,1705611038967,-1206.23882079,0.00034793,2]
[312091821,1705611038978,-276.09635478,0.00034957,2]
[312091823,1705611038988,-430.86875032,0.0003499,6]
[312091825,1705611038997,-591.69239792,0.00035,2]
[312091827,1705611039007,-1719.41141957,0.00035,15]
[312091829,1705611039017,-2084.34070549,0.00035,4]
[312091831,1705611039026,-6760.97413379,0.00035,4]
[312091833,1705611039035,-11157.84737616,0.00035,4]
[312091835,1705611039044,-309.89153874,0.00035,4]
[312091837,1705611039054,-162.563631,0.00035068,2]
[312091839,1705611039063,-560.342832,0.00035616,120]
[312091841,1705611039072,-162.763524,0.0003589,2]
[312091843,1705611039081,-155.0,0.00035913,2]
[312091846,1705611039092,-152.87756486,0.00036088,7]
[312091848,1705611039101,-162.563631,0.00036712,2]
[312091849,1705611039111,-157.542544,0.0003672,7]
[312091851,1705611039121,-276.09635478,0.00037153,2]
[312091853,1705611039132,-344.58931583,0.00037238,4]
[312091856,1705611039142,-154.24828181,0.00037466,7]
[312091858,1705611039152,-22567.71940408,0.00037618,4]
[312091860,1705611039162,-152.87756486,0.00037668,7]
[312091862,1705611039171,-391.0,0.00037784,15]
[312091864,1705611039181,-152.87756486,0.00037847,7]
[312091866,1705611039191,-152.230841,0.00037902,2]
[312091867,1705611039201,-285.86450988,0.00037996,4]
[312091869,1705611039212,-406.64765626,0.00037996,4]
[312091871,1705611039222,-361.23328326,0.00037996,2]
[312091873,1705611039232,-164.13059612,0.00037996,4]
[312091875,1705611039242,-154.9690062,0.00037996,4]
[312091878,1705611039252,-159.61834637,0.00037996,4]
[312091880,1705611039261,-688.82709207,0.00037996,4]
[312091882,1705611039272,-221.06387007,0.00037996,4]
[312091884,1705611039283,-1196.96135251,0.00037996,4]
[312091886,1705611039293,-160.22604488,0.00037996,4]
[312091888,1705611039304,-531.63445466,0.00037996,4]
[312091890,1705611039314,-701.95047309,0.00037996,4]
[312091892,1705611039324,-155.82500385,0.00037996,2]
[312091894,1705611039334,-2071.67545931,0.00037996,4]
[312091896,1705611039343,-156.20759517,0.00037996,4]
[312091898,1705611039352,-721.33834789,0.00037996,2]
[312091900,1705611039361,-156.41283895,0.00037996,4]
[312091902,1705611039370,-522.57590805,0.00037996,4]
[312091904,1705611039379,-155.00310006,0.00037996,4]
[312091906,1705611039388,-1735.58180168,0.00037996,4]
[312091908,1705611039399,-309.02199999,0.00037996,4]
[312091910,1705611039409,-200.98315984,0.00037996,4]
[312091912,1705611039420,-222.27499817,0.00037996,4]
[312091914,1705611039429,-331.52516909,0.00037996,4]
[312091916,1705611039439,-641.55706452,0.00037996,4]
[312091918,1705611039448,-8961.85654012,0.00037996,4]
[312091920,1705611039457,-154.95351395,0.00037996,4]
[312091922,1705611039466,-569.88082184,0.00037996,4]
[312091924,1705611039476,-3644.85296452,0.00037996,4]
[312091926,1705611039484,-154.95351395,0.00037996,4]
[312091928,1705611039494,-154.95351395,0.00037996,2]
[312091930,1705611039503,-472.06419775,0.00037996,4]
[312091932,1705611039512,-10799.91264334,0.00037996,7]
[312091934,1705611039521,-154.95351395,0.00037996,4]
[312091936,1705611039530,-9256.92805084,0.00037997,4]
[312091938,1705611039539,-250.0,0.00037997,7]
[312091940,1705611039549,-500.0,0.00037997,7]
[312091942,1705611039558,-267.1837805,0.00037997,7]
[312091944,1705611039568,-500.0,0.00037997,7]
[312091946,1705611039577,-500.0,0.00037997,7]
[312091948,1705611039586,-469.42227301,0.00037997,7]
[312091950,1705611039595,-500.0,0.00037997,7]
[312091952,1705611039605,-500.0,0.00037997,7]
[312091954,1705611039614,-176.61537214,0.00037997,7]
[312091956,1705611039623,-471.33694125,0.00037997,2]
[312091958,1705611039632,-294.59443179,0.00037997,4]
[312091959,1705611039641,-434.00164402,0.00037997,4]
[312091961,1705611039650,-500.0,0.00037997,4]
[312091962,1705611039660,-500.0,0.00037997,4]
[312091963,1705611039671,-500.0,0.00037997,4]
[312091964,1705611039680,-500.0,0.00037997,4]
[312091966,1705611039689,-500.0,0.00037997,4]
[312091968,1705611039698,-271.6519982,0.00037997,4]
[312091970,1705611039707,-500.0,0.00037997,4]
[312091971,1705611039716,-500.0,0.00037997,4]
[312091973,1705611039726,-500.0,0.00037997,4]
[312091974,1705611039735,-500.0,0.00037997,4]
[312091976,1705611039744,-158.28056733,0.00037997,4]
[312091978,1705611039753,-500.0,0.00037997,4]
[312091979,1705611039763,-500.0,0.00037997,4]
[312091980,1705611039773,-309.10415224,0.00037997,4]
[312091982,1705611039782,-500.0,0.00037997,4]
[312091983,1705611039791,-182.36299674,0.00037997,4]
[312091984,1705611039801,-500.0,0.00037997,4]
[312091985,1705611039810,-500.0,0.00037997,4]
[312091986,1705611039820,-500.0,0.00037997,4]
[312091987,1705611039829,-500.0,0.00037997,4]
[312091988,1705611039839,-500.0,0.00037997,4]
[312091989,1705611039848,-20882.03797315,0.00037998,2]
[312091990,1705611039857,-328.54634455,0.00037998,4]
[312091991,1705611039867,-155.4318566,0.00037998,4]
[312091992,1705611039876,-873.68475195,0.00037998,4]
[312091993,1705611039885,-15988.18118084,0.00037998,4]
[312091994,1705611039894,-640.55202948,0.00037998,4]
[312091995,1705611039904,-155.29532475,0.00037998,4]
[312091996,1705611039914,-294.63708493,0.00037998,4]
[312091997,1705611039925,-319.0046286,0.00037998,4]
[312091998,1705611039935,-49001.43341778,0.00037998,10]
[312091999,1705611039944,-342227.43641257,0.00038,4]
[312092000,1705611039953,-3184.89020531,0.00038,7]
[312092001,1705611039962,-154.95351395,0.00038,2]
[312092002,1705611039972,-152.87756486,0.00038103,7]
[312092003,1705611039981,-5000.0,0.00038126,2]
[312092004,1705611039991,-162.563631,0.00038356,2]
[312092005,1705611040000,-154.24828181,0.00038392,7]
[312092006,1705611040010,-2137.88596785,0.000385,4]
[312092007,1705611040019,-157.542544,0.00038968,7]
[312092008,1705611040030,-2632.79960747,0.00038993,4]
[312092009,1705611040040,-276.09635478,0.00039348,2]
[312092010,1705611040049,-500.0,0.00039367,7]
[312092011,1705611040059,-5000.0,0.00039774,7]
[312092012,1705611040161,-5000.0,0.00039786,7]
[312092013,1705611040174,-5000.0,0.00039786,7]
[312092014,1705611040183,-5000.0,0.00039786,7]
[312092015,1705611040192,-152.230841,0.00039797,2]
[312092016,1705611040202,-4037.37988696,0.0003999,4]
[312092017,1705611040211,-261.77224756,0.00039999,7]
[312092018,1705611040220,-618.7104255,0.00039999,7]
[312092019,1705611040229,-500.0,0.00039999,7]
[312092020,1705611040238,-578.73899865,0.00039999,7]
[312092021,1705611040247,-500.0,0.00039999,7]
[312092022,1705611040256,-500.0,0.00039999,7]
[312092023,1705611040265,-500.0,0.00039999,7]
[312092024,1705611040274,-500.0,0.00039999,7]
[312092025,1705611040283,-500.0,0.00039999,7]
[312092026,1705611040292,-606.82811418,0.00039999,7]
[312092027,1705611040301,-500.0,0.00039999,7]
[312092028,1705611040310,-500.0,0.00039999,7]
[312092029,1705611040319,-500.0,0.00039999,7]
[312092030,1705611040328,-500.0,0.00039999,7]
[312092031,1705611040338,-189.48282976,0.0004,4]
[312092032,1705611040347,-1599.63436256,0.0004,4]
[312092033,1705611040356,-192.82732,0.0004,2]
[312092034,1705611040365,-500.0,0.0004,10]
[312092035,1705611040374,-1117.32490242,0.0004,60]
[312092036,1705611040384,-238.19776867,0.0004,4]
[312092037,1705611040393,-162.563631,0.0004,2]
[312092038,1705611040403,-1816.62824705,0.0004,30]
[312092039,1705611040412,-400.0,0.0004,30]
[312092040,1705611040423,-152.87756486,0.00040058,30]
[312092041,1705611040431,-163.0,0.00040604,2]
[312092042,1705611040440,-202.711,0.00040604,2]
[312092043,1705611040449,-166.874088,0.00040655,2]
[312092044,1705611040458,-365.51661901,0.00040737,7]
[312092045,1705611040467,-2041.22358608,0.00040913,2]
[312092046,1705611040475,-200.0,0.00040967,10]
[312092047,1705611040485,-3000.0,0.00041,120]
[312092048,1705611040494,-400.0,0.00041014,30]
[312092049,1705611040503,-1171.0,0.0004107,30]
[312092050,1705611040512,-1171.0,0.0004108,30]
[312092051,1705611040521,-1171.0,0.0004109,30]
[312092052,1705611040530,-451.00616576,0.00041094,2]
[312092053,1705611040539,-161.69,0.00041094,2]
[312092054,1705611040547,-500.0,0.00041095,30]
[312092055,1705611040556,-523.12917566,0.00041095,30]
[312092056,1705611040565,-500.0,0.00041095,30]
[312092057,1705611040574,-500.0,0.00041095,30]
[312092058,1705611040583,-511.98179124,0.00041095,30]
[312092059,1705611040592,-150.0,0.00041095,30]
[312092060,1705611040600,-506.65944481,0.00041095,30]
[312092062,1705611040609,-500.0,0.00041095,30]
[312092063,1705611040619,-500.0,0.00041095,30]
[312092065,1705611040628,-402.60602696,0.00041095,30]
[312092067,1705611040637,-500.0,0.00041095,30]
[312092068,1705611040647,-500.0,0.00041095,2]
[312092069,1705611040656,-574.10867048,0.00041095,30]
[312092070,1705611040666,-500.0,0.00041095,30]
[312092072,1705611040675,-501.22965993,0.00041095,30]
[312092073,1705611040684,-500.0,0.00041095,30]
[312092075,1705611040693,-252.25483687,0.00041095,30]
[312092077,1705611040702,-500.0,0.00041095,30]
[312092080,1705611040712,-500.0,0.00041095,30]
[312092081,1705611040720,-500.0,0.00041095,30]
[312092082,1705611040730,-500.0,0.00041095,30]
[312092083,1705611040739,-502.18640949,0.00041095,30]
[312092084,1705611040749,-1000.0,0.00041095,2]
[312092085,1705611040758,-233.13048792,0.00041095,30]
[312092087,1705611040767,-500.0,0.00041095,30]
[312092088,1705611040776,-500.0,0.00041095,30]
[312092089,1705611040786,-500.0,0.00041095,30]
[312092090,1705611040795,-500.0,0.00041095,30]
[312092092,1705611040804,-500.0,0.00041095,30]
[312092094,1705611040813,-500.0,0.00041095,30]
[312092095,1705611040823,-500.0,0.00041095,30]
[312092097,1705611040833,-1000.0,0.00041095,2]
[312092098,1705611040843,-500.0,0.00041095,30]
[312092099,1705611040853,-500.0,0.00041095,30]
[312092100,1705611040862,-500.0,0.00041095,30]
[312092101,1705611040871,-500.0,0.00041095,30]
[312092102,1705611040880,-857.74,0.00041095,30]
[312092104,1705611040889,-500.0,0.00041095,30]
[312092105,1705611040898,-500.0,0.00041095,30]
[312092107,1705611040907,-500.0,0.00041095,30]
[312092108,1705611040917,-500.0,0.00041095,30]
[312092109,1705611040926,-664.89,0.00041095,30]
[312092110,1705611040935,-500.0,0.00041095,30]
[312092111,1705611040944,-950.0,0.00041095,2]
[312092112,1705611040953,-500.0,0.00041095,30]
[312092113,1705611040964,-500.0,0.00041095,30]
[312092114,1705611040973,-1587.08,0.00041095,30]
[312092115,1705611040983,-500.0,0.00041095,30]
[312092116,1705611040993,-530.16,0.00041095,30]
[312092117,1705611041002,-1343.32,0.00041095,30]
[312092118,1705611041011,-500.0,0.00041095,30]
[312092119,1705611041020,-769.18,0.00041095,30]
[312092120,1705611041029,-500.0,0.00041095,30]
[312092121,1705611041038,-500.0,0.00041095,30]
[312092122,1705611041048,-500.0,0.00041095,30]
[312092123,1705611041058,-13814.82,0.00041095,14]
[312092124,1705611041068,-1825.84,0.00041095,30]
[312092125,1705611041077,-3153.04,0.00041095,30]
[312092126,1705611041086,-642.95,0.00041095,30]
[312092127,1705611041095,-500.0,0.00041095,30]
[312092128,1705611041104,-91.49802021,0.00041095,30]
[312092129,1705611041120,-408.50197979,0.00041095,30]
[312092130,1705611041132,-1636.6,0.00041095,30]
[312092131,1705611041142,-3167.88,0.00041095,30]
[312092132,1705611041151,-500.0,0.00041095,30]
[312092133,1705611041160,-876.55,0.00041095,30]
[312092134,1705611041169,-604.95,0.00041095,30]
[312092135,1705611041178,-590.07,0.00041095,30]
[312092136,1705611041188,-500.0,0.00041095,30]
[312092137,1705611041198,-500.0,0.00041095,14]
[312092138,1705611041207,-677.64,0.00041095,30]
[312092139,1705611041216,-2777.1,0.00041095,30]
[312092140,1705611041225,-296.90375738,0.00041095,30]
[312092141,1705611041235,-9081.32,0.00041095,30]
[312092142,1705611041244,-3930.49,0.00041095,30]
[312092143,1705611041253,-282.07068424,0.00041095,30]
[312092144,1705611041262,-687.18,0.00041095,30]
[312092145,1705611041271,-500.0,0.00041095,30]
[312092146,1705611041280,-2881.63350059,0.00041095,30]
[312092148,1705611041635,-866.43649941,0.00041095,30]
[312092149,1705611041644,-500.0,0.00041095,30]